[Event "Goteborg Open 2024"]
[Site "Goteborgs Schackcentrum, Vegatan 20, Gothenburg, Sweden"]
[Date "2024.08.03"]
[Round "5.6"]
[White "Bergdahl, Martin"]
[Black "Ulmer, Maya Vissing"]
[Result "0-1"]
[TimeControl "15 minutes + 5 seconds per move from move one (Round 1 - 4) / 90 minutes + 30 seconds per move from move one (Round 5 - 8)"]
[WhiteFideId "1782231"]
[BlackFideId "1479997"]
[WhiteElo "1711"]
[BlackElo "1676"]

1. e4 {[%clk 01:30:59]} {[%emt 00:00:02]} c6 {[%clk 01:30:55]} {[%emt
00:00:04]} 2. d4 {[%clk 01:31:25]} {[%emt 00:00:05]} d5 {[%clk 01:31:21]}
{[%emt 00:00:03]} 3. e5 {[%clk 01:31:49]} {[%emt 00:00:07]} Bf5 {[%clk
01:31:43]} {[%emt 00:00:08]} 4. Nc3 {[%clk 01:32:03]} {[%emt 00:00:16]} e6
{[%clk 01:32:03]} {[%emt 00:00:10]} 5. Bd3 {[%clk 01:32:24]} {[%emt 00:00:09]}
Bxd3 {[%clk 01:32:07]} {[%emt 00:00:25]} 6. Qxd3 {[%clk 01:32:45]} {[%emt
00:00:09]} Qb6 {[%clk 01:31:05]} {[%emt 00:01:33]} 7. Nf3 {[%clk 01:32:38]}
{[%emt 00:00:37]} c5 {[%clk 01:30:06]} {[%emt 00:01:29]} 8. Qb5+ {[%clk
01:32:46]} {[%emt 00:00:22]} Nc6 {[%clk 01:26:51]} {[%emt 00:03:45]} 9. Qxb6
{[%clk 01:32:26]} {[%emt 00:00:49]} axb6 {[%clk 01:27:14]} {[%emt 00:00:08]} 10.
dxc5 {[%clk 01:32:04]} {[%emt 00:00:52]} bxc5 {[%clk 01:25:32]} {[%emt
00:02:12]} 11. Bg5 {[%clk 01:30:52]} {[%emt 00:01:39]} Na7 {[%clk 01:08:56]}
{[%emt 00:17:08]} 12. a4 {[%clk 01:29:41]} {[%emt 00:01:41]} Ne7 {[%clk
01:06:39]} {[%emt 00:02:48]} 13. O-O {[%clk 01:29:33]} {[%emt 00:00:37]} h6
{[%clk 01:06:44]} {[%emt 00:00:26]} 14. Bh4 {[%clk 01:29:04]} {[%emt 00:00:58]}
g5 {[%clk 01:06:26]} {[%emt 00:00:49]} 15. Bg3 {[%clk 01:29:17]} {[%emt
00:00:18]} Bg7 {[%clk 01:05:02]} {[%emt 00:01:53]} 16. Nd2 {[%clk 01:29:15]}
{[%emt 00:00:27]} Nf5 {[%clk 01:03:58]} {[%emt 00:01:39]} 17. Rfe1 {[%clk
01:26:11]} {[%emt 00:03:32]} Nxg3 {[%clk 01:01:51]} {[%emt 00:02:39]} 18. fxg3
{[%clk 01:26:31]} {[%emt 00:00:09]} O-O {[%clk 01:01:53]} {[%emt 00:00:29]} 19.
h4 {[%clk 01:24:08]} {[%emt 00:02:53]} g4 {[%clk 00:56:24]} {[%emt 00:05:59]}
20. Nb3 {[%clk 01:15:36]} {[%emt 00:09:02]} Nc6 {[%clk 00:44:00]} {[%emt
00:12:54]} 21. Nxc5 {[%clk 01:13:02]} {[%emt 00:03:04]} Bxe5 {[%clk 00:44:09]}
{[%emt 00:00:20]} 22. Kh2 {[%clk 01:12:45]} {[%emt 00:00:47]} Kg7 {[%clk
00:37:38]} {[%emt 00:07:01]} 23. Nd3 {[%clk 01:02:38]} {[%emt 00:10:37]} Bxc3
{[%clk 00:34:03]} {[%emt 00:04:06]} 24. bxc3 {[%clk 01:03:00]} {[%emt
00:00:08]} Rfc8 {[%clk 00:31:03]} {[%emt 00:03:29]} 25. Rab1 {[%clk 01:00:25]}
{[%emt 00:03:04]} Nd8 {[%clk 00:28:00]} {[%emt 00:03:34]} 26. Rb4 {[%clk
00:58:18]} {[%emt 00:02:37]} f5 {[%clk 00:21:20]} {[%emt 00:07:10]} 27. Nf4
{[%clk 00:57:48]} {[%emt 00:01:00]} Ra6 {[%clk 00:21:32]} {[%emt 00:00:19]} 28.
Re3 {[%clk 00:56:26]} {[%emt 00:01:50]} Rac6 {[%clk 00:20:03]} {[%emt
00:01:56]} 29. Ne2 {[%clk 00:54:52]} {[%emt 00:01:55]} Rc4 {[%clk 00:18:54]}
{[%emt 00:01:53]} 30. Nd4 {[%clk 00:54:47]} {[%emt 00:00:35]} Rxb4 {[%clk
00:18:41]} {[%emt 00:00:43]} 31. cxb4 {[%clk 00:55:00]} {[%emt 00:00:17]} Kf7
{[%clk 00:18:58]} {[%emt 00:00:13]} 32. c3 {[%clk 00:54:38]} {[%emt 00:00:52]}
Ra8 {[%clk 00:18:03]} {[%emt 00:01:25]} 33. a5 {[%clk 00:55:04]} {[%emt
00:00:04]} Ra6 {[%clk 00:17:34]} {[%emt 00:00:58]} 34. Nb3 {[%clk 00:54:23]}
{[%emt 00:01:11]} Rc6 {[%clk 00:16:49]} {[%emt 00:01:16]} 35. b5 {[%clk
00:54:24]} {[%emt 00:00:29]} Rc4 {[%clk 00:16:33]} {[%emt 00:00:45]} 36. a6
{[%clk 00:54:04]} {[%emt 00:00:51]} bxa6 {[%clk 00:16:15]} {[%emt 00:00:49]} 37.
bxa6 {[%clk 00:54:27]} {[%emt 00:00:07]} Rc6 {[%clk 00:15:37]} {[%emt
00:01:06]} 38. Nc1 {[%clk 00:51:57]} {[%emt 00:03:00]} Rxa6 {[%clk 00:15:37]}
{[%emt 00:00:31]} 39. Nd3 {[%clk 00:52:09]} {[%emt 00:00:18]} Ra3 {[%clk
00:13:36]} {[%emt 00:02:31]} 40. Nf4 {[%clk 00:52:04]} {[%emt 00:00:23]} Ra4
{[%clk 00:07:58]} {[%emt 00:06:20]} 41. Rd3 {[%clk 00:50:45]} {[%emt 00:01:49]}
Re4 {[%clk 00:07:18]} {[%emt 00:01:00]} 42. Nxd5 {[%clk 00:50:04]} {[%emt
00:01:20]} exd5 {[%clk 00:06:51]} {[%emt 00:00:57]} 43. Rxd5 {[%clk 00:50:27]}
{[%emt 00:00:08]} Ne6 {[%clk 00:06:12]} {[%emt 00:01:08]} 44. Rxf5+ {[%clk
00:50:34]} {[%emt 00:00:22]} Kg6 {[%clk 00:06:10]} {[%emt 00:00:32]} 45. Ra5
{[%clk 00:49:20]} {[%emt 00:01:45]} Rc4 {[%clk 00:05:41]} {[%emt 00:00:59]} 46.
Ra3 {[%clk 00:46:55]} {[%emt 00:02:56]} Nc5 {[%clk 00:05:17]} {[%emt 00:00:54]}
47. Kg1 {[%clk 00:45:21]} {[%emt 00:02:03]} Ne4 {[%clk 00:04:57]} {[%emt
00:00:50]} 48. Ra6+ {[%clk 00:45:35]} {[%emt 00:00:16]} Kh5 {[%clk 00:04:55]}
{[%emt 00:00:32]} 49. Ra5+ {[%clk 00:46:04]} {[%emt 00:00:02]} Rc5 {[%clk
00:04:26]} {[%emt 00:00:59]} 50. Rxc5+ {[%clk 00:44:28]} {[%emt 00:02:06]} Nxc5
{[%clk 00:04:51]} {[%emt 00:00:05]} 51. Kh2 {[%clk 00:44:29]} {[%emt 00:00:28]}
Kg6 {[%clk 00:04:58]} {[%emt 00:00:24]} 52. c4 {[%clk 00:44:48]} {[%emt
00:00:11]} Kf5 {[%clk 00:05:12]} {[%emt 00:00:16]} 53. Kg1 {[%clk 00:44:57]}
{[%emt 00:00:21]} Ne4 {[%clk 00:05:02]} {[%emt 00:00:40]} 54. c5 {[%clk
00:45:18]} {[%emt 00:00:10]} Nxc5 {[%clk 00:05:00]} {[%emt 00:00:31]} 55. h5
{[%clk 00:45:37]} {[%emt 00:00:11]} Ne4 {[%clk 00:05:07]} {[%emt 00:00:22]} 56.
Kh2 {[%clk 00:46:01]} {[%emt 00:00:06]} Kg5 {[%clk 00:05:07]} {[%emt 00:00:31]}
57. Kg1 {[%clk 00:46:22]} {[%emt 00:00:09]} Nxg3 {[%clk 00:05:22]} {[%emt
00:00:15]} 58. Kh2 {[%clk 00:46:44]} {[%emt 00:00:07]} Nxh5 {[%clk 00:05:30]}
{[%emt 00:00:23]} 59. g3 {[%clk 00:47:03]} {[%emt 00:00:10]} Nf6 {[%clk
00:05:42]} {[%emt 00:00:19]} 60. Kg2 {[%clk 00:47:18]} {[%emt 00:00:15]} Ne4
{[%clk 00:05:58]} {[%emt 00:00:14]} 61. Kh2 {[%clk 00:47:39]} {[%emt 00:00:09]}
h5 {[%clk 00:06:04]} {[%emt 00:00:24]} 62. Kg2 {[%clk 00:48:02]} {[%emt
00:00:06]} Nxg3 {[%clk 00:06:21]} {[%emt 00:00:14]} 63. Kxg3 {[%clk 00:48:23]}
{[%emt 00:00:08]} h4+ {[%clk 00:06:47]} {[%emt 00:00:05]} 64. Kh2 {[%clk
00:48:46]} {[%emt 00:00:07]} Kf4 {[%clk 00:07:05]} {[%emt 00:00:13]} 65. Kg2
{[%clk 00:49:02]} {[%emt 00:00:13]} h3+ {[%clk 00:06:56]} {[%emt 00:00:39]} 66.
Kf2 {[%clk 00:49:23]} {[%emt 00:00:08]} g3+ {[%clk 00:07:14]} {[%emt 00:00:13]}
67. Kg1 {[%clk 00:49:43]} {[%emt 00:00:11]} Kf3 {[%clk 00:07:32]} {[%emt
00:00:11]} 68. Kh1 {[%clk 00:50:02]} {[%emt 00:00:10]} g2+ {[%clk 00:07:41]}
{[%emt 00:00:22]} 69. Kg1 {[%clk 00:50:13]} {[%emt 00:00:19]} h2+ {[%clk
00:08:06]} {[%emt 00:00:04]} 70. Kxh2 {[%clk 00:50:36]} {[%emt 00:00:07]} Kf2
{[%clk 00:08:33]} {[%emt 00:00:04]} 71. Kh3 {[%clk 00:50:51]} {[%emt 00:00:15]}
g1=Q {[%clk 00:08:48]} {[%emt 00:00:15]} 72. Kh4 {[%clk 00:51:05]} {[%emt
00:00:16]} Qg6 {[%clk 00:09:08]} {[%emt 00:00:09]} 73. Kh3 {[%clk 00:51:27]}
{[%emt 00:00:08]} Qg3+ {[%clk 00:09:04]} {[%emt 00:00:04]} 0-1

[Event "Goteborg Open 2024"]
[Site "Goteborgs Schackcentrum, Vegatan 20, Gothenburg, Sweden"]
[Date "2024.08.03"]
[Round "5.7"]
[White "Ottgard, Andreas"]
[Black "Green, David"]
[Result "1/2-1/2"]
[TimeControl "15 minutes + 5 seconds per move from move one (Round 1 - 4) / 90 minutes + 30 seconds per move from move one (Round 5 - 8)"]
[WhiteFideId "1730592"]
[BlackFideId "1769332"]
[WhiteElo "1900"]
[BlackElo "1946"]

1. c4 {[%clk 01:30:56]} {[%emt 00:00:04]} e5 {[%clk 01:30:47]} {[%emt
00:00:13]} 2. g3 {[%clk 01:31:20]} {[%emt 00:00:06]} Nf6 {[%clk 01:31:03]}
{[%emt 00:00:15]} 3. Bg2 {[%clk 01:31:43]} {[%emt 00:00:07]} c6 {[%clk
01:31:29]} {[%emt 00:00:04]} 4. d4 {[%clk 01:30:02]} {[%emt 00:02:10]} e4
{[%clk 01:31:47]} {[%emt 00:00:13]} 5. Bg5 {[%clk 01:28:31]} {[%emt 00:02:00]}
d5 {[%clk 01:31:25]} {[%emt 00:00:52]} 6. e3 {[%clk 01:25:07]} {[%emt
00:03:55]} Be7 {[%clk 01:29:25]} {[%emt 00:02:29]} 7. Nc3 {[%clk 01:24:08]}
{[%emt 00:01:29]} Nbd7 {[%clk 01:26:00]} {[%emt 00:03:53]} 8. Nge2 {[%clk
01:18:59]} {[%emt 00:05:41]} O-O {[%clk 01:24:18]} {[%emt 00:02:12]} 9. O-O
{[%clk 01:19:04]} {[%emt 00:00:24]} b6 {[%clk 01:14:14]} {[%emt 00:10:36]} 10.
Qa4 {[%clk 01:12:38]} {[%emt 00:06:56]} Bb7 {[%clk 01:10:21]} {[%emt 00:04:23]}
11. cxd5 {[%clk 01:09:01]} {[%emt 00:04:06]} cxd5 {[%clk 01:08:59]} {[%emt
00:01:53]} 12. b4 {[%clk 00:54:25]} {[%emt 00:15:06]} Ne8 {[%clk 00:48:58]}
{[%emt 00:20:31]} 13. Bxe7 {[%clk 00:54:30]} {[%emt 00:00:24]} Qxe7 {[%clk
00:48:55]} {[%emt 00:00:34]} 14. Nf4 {[%clk 00:48:14]} {[%emt 00:06:45]} Ndf6
{[%clk 00:46:55]} {[%emt 00:02:29]} 15. Qb3 {[%clk 00:47:20]} {[%emt 00:01:25]}
Rd8 {[%clk 00:40:29]} {[%emt 00:06:55]} 16. h4 {[%clk 00:45:49]} {[%emt
00:02:02]} Nc7 {[%clk 00:30:40]} {[%emt 00:10:19]} 17. Rac1 {[%clk 00:39:05]}
{[%emt 00:07:14]} h6 {[%clk 00:26:08]} {[%emt 00:05:02]} 18. Rc2 {[%clk
00:21:42]} {[%emt 00:17:54]} Ne6 {[%clk 00:18:24]} {[%emt 00:08:14]} 19. Nxe6
{[%clk 00:18:30]} {[%emt 00:03:41]} Qxe6 {[%clk 00:17:22]} {[%emt 00:01:33]} 20.
Nb5 {[%clk 00:11:50]} {[%emt 00:07:09]} a6 {[%clk 00:16:07]} {[%emt 00:01:46]}
21. Nc7 {[%clk 00:11:48]} {[%emt 00:00:31]} Qd7 {[%clk 00:15:39]} {[%emt
00:00:58]} 22. Rfc1 {[%clk 00:10:34]} {[%emt 00:01:44]} Rc8 {[%clk 00:13:19]}
{[%emt 00:02:51]} 23. Qa3 {[%clk 00:09:18]} {[%emt 00:01:46]} Kh7 {[%clk
00:09:54]} {[%emt 00:03:55]} 24. Nxa6 {[%clk 00:07:45]} {[%emt 00:02:02]} Ra8
{[%clk 00:09:03]} {[%emt 00:01:21]} 25. Bf1 {[%clk 00:07:56]} {[%emt 00:00:18]}
Bxa6 {[%clk 00:03:24]} {[%emt 00:06:11]} 26. Bxa6 {[%clk 00:08:17]} {[%emt
00:00:09]} Qa7 {[%clk 00:02:56]} {[%emt 00:00:58]} 27. b5 {[%clk 00:08:14]}
{[%emt 00:00:32]} Qd7 {[%clk 00:02:56]} {[%emt 00:00:29]} 28. Kg2 {[%clk
00:07:42]} {[%emt 00:01:03]} Qf5 {[%clk 00:01:40]} {[%emt 00:01:46]} 29. Qd6
{[%clk 00:06:58]} {[%emt 00:01:14]} Qf3+ {[%clk 00:00:51]} {[%emt 00:01:19]} 30.
Kg1 {[%clk 00:06:56]} {[%emt 00:00:32]} g5 {[%clk 00:00:33]} {[%emt 00:00:49]}
31. hxg5 {[%clk 00:07:10]} {[%emt 00:00:15]} hxg5 {[%clk 00:00:49]} {[%emt
00:00:14]} 32. Qe5 {[%clk 00:02:37]} {[%emt 00:05:02]} Kg6 {[%clk 00:00:56]}
{[%emt 00:00:24]} 33. g4 {[%clk 00:00:53]} {[%emt 00:02:14]} Nxg4 {[%clk
00:00:39]} {[%emt 00:00:48]} 34. Rc6+ {[%clk 00:00:55]} {[%emt 00:00:27]} f6
{[%clk 00:00:48]} {[%emt 00:00:22]} 35. Qg3 {[%clk 00:00:33]} {[%emt 00:00:52]}
Rh8 {[%clk 00:00:34]} {[%emt 00:00:44]} 36. Qxf3 {[%clk 00:00:38]} {[%emt
00:00:25]} exf3 {[%clk 00:01:03]} 37. Bc8 {[%clk 00:00:39]} {[%emt 00:00:28]}
Rh4 {[%clk 00:00:34]} {[%emt 00:01:00]} 38. R1c2 {[%clk 00:00:38]} {[%emt
00:00:31]} Ra7 {[%clk 00:00:39]} {[%emt 00:00:25]} 39. Rc7 {[%clk 00:00:44]}
{[%emt 00:00:25]} Ra5 {[%clk 00:01:07]} {[%emt 00:00:02]} 40. Bd7 {[%clk
00:00:39]} {[%emt 00:00:34]} Ra8 {[%clk 00:00:32]} {[%emt 00:01:05]} 41. Rc8
{[%clk 00:00:53]} {[%emt 00:00:17]} Ra7 {[%clk 00:00:54]} {[%emt 00:00:08]} 42.
R8c7 {[%clk 00:00:42]} {[%emt 00:00:40]} Ra8 {[%clk 00:00:43]} {[%emt
00:00:42]} 43. Rc8 {[%clk 00:00:57]} {[%emt 00:00:15]} Rxc8 {[%clk 00:00:35]}
{[%emt 00:00:38]} 44. Rxc8 {[%clk 00:01:18]} {[%emt 00:00:08]} f5 {[%clk
00:00:31]} {[%emt 00:00:34]} 45. Rc6+ {[%clk 00:01:45]} {[%emt 00:00:03]} Nf6
{[%clk 00:00:55]} {[%emt 00:00:07]} 46. Rxb6 {[%clk 00:01:35]} {[%emt
00:00:40]} Rg4+ {[%clk 00:01:05]} {[%emt 00:00:18]} 47. Kf1 {[%clk 00:01:47]}
{[%emt 00:00:19]} Rh4 {[%clk 00:01:21]} {[%emt 00:00:14]} 48. Kg1 {[%clk
00:01:37]} {[%emt 00:00:40]} Rg4+ {[%clk 00:01:44]} {[%emt 00:00:08]} 49. Kf1
{[%clk 00:01:23]} {[%emt 00:00:43]} Rh4 {[%clk 00:02:08]} {[%emt 00:00:06]} 50.
Kg1 {[%clk 00:01:19]} {[%emt 00:00:34]} 1/2-1/2

[Event "Goteborg Open 2024"]
[Site "Goteborgs Schackcentrum, Vegatan 20, Gothenburg, Sweden"]
[Date "2024.08.03"]
[Round "5.8"]
[White "Utriainen, Tapani"]
[Black "Madevan Vaishnavi, Yaashvan"]
[Result "1/2-1/2"]
[TimeControl "15 minutes + 5 seconds per move from move one (Round 1 - 4) / 90 minutes + 30 seconds per move from move one (Round 5 - 8)"]
[WhiteFideId "16300696"]
[BlackFideId "1772180"]
[WhiteElo "1914"]
[BlackElo "1684"]

1. d4 {[%clk 01:30:58]} {[%emt 00:00:03]} Nf6 {[%clk 01:30:54]} {[%emt
00:00:06]} 2. c4 {[%clk 01:31:26]} g6 {[%clk 01:31:18]} {[%emt 00:00:07]} 3. f3
{[%clk 01:31:55]} {[%emt 00:00:01]} c6 {[%clk 01:31:08]} {[%emt 00:00:40]} 4.
e4 {[%clk 01:32:15]} {[%emt 00:00:11]} d5 {[%clk 01:31:31]} {[%emt 00:00:07]} 5.
Nc3 {[%clk 01:31:35]} {[%emt 00:01:10]} dxc4 {[%clk 01:29:21]} {[%emt
00:02:39]} 6. Bxc4 {[%clk 01:31:52]} {[%emt 00:00:12]} Bg7 {[%clk 01:29:39]}
{[%emt 00:00:12]} 7. Be3 {[%clk 01:31:51]} {[%emt 00:00:31]} O-O {[%clk
01:29:35]} {[%emt 00:00:34]} 8. Qd2 {[%clk 01:31:41]} {[%emt 00:00:40]} b5
{[%clk 01:28:05]} {[%emt 00:02:01]} 9. Bb3 {[%clk 01:31:53]} {[%emt 00:00:18]}
Na6 {[%clk 01:28:05]} {[%emt 00:00:30]} 10. Nge2 {[%clk 01:30:27]} {[%emt
00:01:56]} Bb7 {[%clk 01:27:05]} {[%emt 00:01:31]} 11. O-O {[%clk 01:29:46]}
{[%emt 00:01:10]} Rc8 {[%clk 01:25:48]} {[%emt 00:01:47]} 12. Rfd1 {[%clk
01:26:56]} {[%emt 00:03:19]} Nd7 {[%clk 01:22:08]} {[%emt 00:04:10]} 13. d5
{[%clk 01:12:16]} {[%emt 00:15:10]} b4 {[%clk 01:17:49]} {[%emt 00:04:50]} 14.
Na4 {[%clk 01:12:22]} {[%emt 00:00:24]} c5 {[%clk 01:18:02]} {[%emt 00:00:17]}
15. Rac1 {[%clk 01:10:57]} {[%emt 00:01:55]} Qa5 {[%clk 01:16:38]} {[%emt
00:01:54]} 16. Qc2 {[%clk 01:09:55]} {[%emt 00:01:31]} c4 {[%clk 01:15:14]}
{[%emt 00:01:55]} 17. Bxc4 {[%clk 01:07:06]} {[%emt 00:03:19]} Rxc4 {[%clk
01:15:00]} {[%emt 00:00:44]} 18. Qxc4 {[%clk 01:07:00]} {[%emt 00:00:36]} Qxa4
{[%clk 01:15:22]} {[%emt 00:00:08]} 19. Nc3 {[%clk 00:51:09]} {[%emt 00:16:20]}
Qa5 {[%clk 01:14:07]} {[%emt 00:01:46]} 20. Qb5 {[%clk 00:51:12]} {[%emt
00:00:27]} Qxb5 {[%clk 01:13:54]} {[%emt 00:00:42]} 21. Nxb5 {[%clk 00:51:41]}
{[%emt 00:00:03]} Bxb2 {[%clk 01:11:49]} {[%emt 00:02:35]} 22. Rb1 {[%clk
00:52:01]} {[%emt 00:00:10]} Bg7 {[%clk 01:11:53]} {[%emt 00:00:25]} 23. Nxa7
{[%clk 00:52:11]} {[%emt 00:00:20]} Ne5 {[%clk 01:06:00]} {[%emt 00:06:23]} 24.
Bg5 {[%clk 00:35:59]} {[%emt 00:16:41]} f6 {[%clk 01:03:05]} {[%emt 00:03:26]}
25. Bd2 {[%clk 00:34:24]} {[%emt 00:02:04]} Nd3 {[%clk 00:54:44]} {[%emt
00:08:52]} 26. a3 {[%clk 00:32:39]} {[%emt 00:02:15]} f5 {[%clk 00:54:31]}
{[%emt 00:00:42]} 27. Be3 {[%clk 00:31:51]} {[%emt 00:01:18]} Nb2 {[%clk
00:54:13]} {[%emt 00:00:49]} 28. axb4 {[%clk 00:10:07]} {[%emt 00:22:15]} Nxd1
{[%clk 00:49:55]} {[%emt 00:04:47]} 29. Rxd1 {[%clk 00:10:26]} {[%emt
00:00:10]} f4 {[%clk 00:50:08]} {[%emt 00:00:17]} 30. Bc5 {[%clk 00:08:43]}
{[%emt 00:02:14]} Kf7 {[%clk 00:45:24]} {[%emt 00:05:14]} 31. Nb5 {[%clk
00:04:59]} {[%emt 00:04:13]} Be5 {[%clk 00:40:58]} {[%emt 00:04:57]} 32. d6
{[%clk 00:02:44]} {[%emt 00:02:45]} Nxc5 {[%clk 00:36:52]} {[%emt 00:04:37]} 33.
bxc5 {[%clk 00:02:10]} {[%emt 00:01:03]} exd6 {[%clk 00:37:12]} {[%emt
00:00:10]} 34. Nxd6+ {[%clk 00:02:12]} {[%emt 00:00:28]} Bxd6 {[%clk 00:37:34]}
{[%emt 00:00:08]} 35. Rxd6 {[%clk 00:02:32]} {[%emt 00:00:09]} Ke7 {[%clk
00:37:24]} {[%emt 00:00:41]} 36. Rb6 {[%clk 00:02:47]} {[%emt 00:00:15]} Ba8
{[%clk 00:37:07]} {[%emt 00:00:47]} 37. Ra6 {[%clk 00:02:58]} {[%emt 00:00:19]}
Rc8 {[%clk 00:36:27]} {[%emt 00:01:10]} 38. Ra7+ {[%clk 00:03:11]} {[%emt
00:00:17]} Kf6 {[%clk 00:35:20]} {[%emt 00:01:37]} 39. Rxh7 {[%clk 00:03:35]}
{[%emt 00:00:06]} Rxc5 {[%clk 00:35:33]} {[%emt 00:00:18]} 40. g3 {[%clk
00:03:28]} {[%emt 00:00:37]} fxg3 {[%clk 00:33:44]} {[%emt 00:02:16]} 1/2-1/2